{"text_format":"3","workbook":"xlsx","n_sheets":2,"sheets":["Lista de Verificação Criança 1","Informações para Emergência"],"not_rendered":{"images":2,"defined_names":3},"read":"whole","date_system":"1900"}

{"sheet":"Lista de Verificação Criança 1","index":0,"n_rows":38,"n_cols":13,"rows_kept":38,"merged":[[1,1,2,5],[4,2,4,6],[4,7,4,11],[30,1,30,12]]}
[]
[null,"Lista de Verificação da Babá",{"$nulls":9},"NOME DA CRIANÇA:","LUÍS"]
[{"$nulls":11},"HORA DE INÍCIO DA LISTA DE VERIFICAÇÃO:","07:00:00"]
[{"$nulls":11},"INTERVALO (EM MINUTOS):",60]
[null,"AGENDA","ALIMENTAÇÃO E CUIDADOS PESSOAIS",{"$nulls":4},"ENTRETENIMENTO E DESCANSO (REGISTRAR MINUTOS) ",{"$nulls":4},"OUTROS"]
[null,"Hora","Refeição ou lanche","Mamadeira ou suco","Dentes escovados","Troca de fralda","Banho","Ar livre","Interno","Livros","TV","Soneca ou hora de dormir","Anotações"]
[null,{"$f":"HoraInício","v":"07:00:00"}]
[null,{"$f":"B7+TIME(0,Intervalo,0)","v":"08:00:00"}]
[null,{"$f":"B8+TIME(0,Intervalo,0)","v":"09:00:00"}]
[null,"10:00:00"]
[null,"11:00:00"]
[null,"12:00:00"]
[null,"13:00:00"]
[null,"14:00:00"]
[null,"15:00:00"]
[null,"16:00:00"]
[null,"17:00:00"]
[null,"18:00:00"]
[null,"19:00:00"]
[null,"20:00:00"]
[null,"21:00:00"]
[null,"22:00:00"]
[null,"23:00:00"]
[null,0.9999999999999997]
[null,1.0416666666666663]
[null,1.083333333333333]
[null,1.1249999999999998]
[null,1.1666666666666665]
[null,1.2083333333333333]
[null,1.25]
[]
[null,{"$f":"\"INDICAÇÕES ESPECIAIS PARA \"&NomeCriança","v":"INDICAÇÕES ESPECIAIS PARA LUÍS"}]
[null,{"$f":"\"O que o(a) \"& PROPER(NomeCriança)& \" pode comer e quando:\"","v":"O que o(a) Luís pode comer e quando:"}]
[null,{"$f":"\"O que o(a) \"& PROPER(NomeCriança)& \" não pode comer:\"","v":"O que o(a) Luís não pode comer:"}]
[null,{"$f":"\"Vídeojogos e programas de TV aprovados para o(a) \"&PROPER(NomeCriança)&\":\"","v":"Vídeojogos e programas de TV aprovados para o(a) Luís:"}]
[null,{"$f":"\"A hora de deitar para o(a) \"&PROPER(NomeCriança)&\":\"","v":"A hora de deitar para o(a) Luís:"}]
[null,{"$f":"\"Coisas que o(a) \"&PROPER(NomeCriança)&\" não tem autorização para fazer:\"","v":"Coisas que o(a) Luís não tem autorização para fazer:"}]
[null,{"$f":"\"Para problemas disciplinares com o(a) \"&PROPER(NomeCriança)&\":\"","v":"Para problemas disciplinares com o(a) Luís:"}]

{"sheet":"Informações para Emergência","index":1,"n_rows":31,"n_cols":5,"rows_kept":31,"merged":[[14,1,14,3],[15,1,15,3],[25,1,25,3],[31,1,31,3]]}
[{"$nulls":4}," "]
[null,"Informações para Emergência"]
[null,"INFORMAÇÕES DE CONTATO"]
[null,"Onde estarei e telefone:","Casa de Janaína Bueno, telefone: 555-0134"]
[null,"Hora de chegada:","19:00:00"]
[null,"Contato e telefone alternativo:","Manuel Oliveira (avô), telefone: 555-0187"]
[null,"Nosso endereço para emergência:","123 W. Hyde Park, Hillsdale WA"]
[null,"Ponto de referência:","Esquina da North Drive e Toronto Road"]
[null,"Nome e telefone do vizinho para contato:","Susana Oliveira, telefone: 555-0176"]
[]
[null,"FORMULÁRIO DE AUTORIZAÇÃO PARA TRATAMENTO EMERGENCIAL"]
[null,"NOME DA CRIANÇA","DATA DE NASCIMENTO","PROBLEMAS MÉDICOS CONHECIDOS, ALERGIAS A ALIMENTOS E MEDICAMENTOS, MEDICAÇÃO (COM E SEM RECEITA) ETC:"]
[null,"Luís Alverca","2001-03-30","Nenhum"]
[null,"Luciana Ramos","1997-03-28","Alérgico a penicilina"]
[]
[null,"Qualquer médico, dentista ou hospital poderá prestar o atendimento emergencial que for necessário a meus filhos listados acima,"]
[null,"mediante solicitação da pessoa portadora desta autorização."]
[]
[null,"Data",null,"Assinatura do Pai ou Guardião Legal"]
[]
[null,"INFORMAÇÕES MÉDICAS"]
[null,"NOME DO MÉDICO/ESPECIALIDADE","TELEFONE","ENDEREÇO"]
[null,"Dentista: Dr. João","455-555-0134","1600 Cherry Blvd, Hillsdale"]
[null,"Médico: Dr. Nuno","455-555-0145","3400 Washington Drive, Hillsdale"]
[null,"Ortodontista: Dr. Victor","455-555-0156","123 W. Adams Street, Chatham"]
[]
[null,"INFORMAÇÕES DE SEGURO"]
[null,"TIPO DE SERVIÇO","Nº APÓLICE","NOME DO SEGURADO"]
[null,"Médico","987687-88776","Luís Alverca"]
[null,"Odontológico","09877UT9U","Luís Alverca"]
[null,"Receituário","7658007 99","Luís Alverca"]